Cogmind - Beta 15 @@@ ROGUE MODE // 2025.09.28 @ 16:04:06 Player: Runagate Result: Destroyed by G-34 Mercenary with Small Laser Performance ------------- Evolutions (1) 500 Regions Visited (2) 400 Robots Destroyed (24) 120 Value Destroyed (635) 635 Prototype IDs (0) 0 Alien Tech Used (0) 0 Bonus (0) 0 TOTAL SCORE: 1655 Bonus ------- None Cogmind --------- Core Integrity 0/400 Matter 154/300 Energy 81/100 System Corruption 1% Temperature Warning (398) Movement Core (300) Ox5 Location -9/Materials Parts ------- > --- POWER (1) -------- (None) > --- PROPULSION (3) --- (None) > --- UTILITY (2) ------ Medium Storage Unit > --- WEAPON (3) ------- Assault Rifle Assault Rifle Heavy Assault Rifle > --- INVENTORY (10) --- Ion Engine Ion Engine Aluminum Leg Improved Sensor Array Light Armor Plating Hacking Suite Medium Laser Peak State ------------ > --- POWER ------------ Improved Ion Engine > --- PROPULSION ------- Aluminum Leg Aluminum Leg Aluminum Leg > --- UTILITY ---------- Medium Storage Unit Seismic Detector > --- WEAPON ----------- Medium Laser Assault Rifle Heavy Assault Rifle > --- INVENTORY -------- Ion Engine Ion Engine Ion Engine Ion Engine Light Ion Engine Aluminum Leg EM Pulse Gun Medium Laser Assault Rifle Grenade Launcher [Rating: 12] Favorites ----------- Power Ion Engine Engine Ion Engine Propulsion Aluminum Leg Leg Aluminum Leg Utility Seismic Detector Device Seismic Detector Storage Small Storage Unit Weapon Medium Laser Energy Gun Medium Laser Ballistic Gun Assault Rifle Launcher Grenade Launcher Build | -11 -10 -9 ------- Run | Yrd Mat Mat Slots Evolved 2 | . . 2 Power . | . . . Propulsion 1 | . . 1 Utility . | . . . Weapon 1 | . . 1 Parts Attached 22 | 8 8 6 Power 5 | 1 3 1 Engine 5 | 1 3 1 Core . | . . . Reactor . | . . . Propulsion 4 | 2 2 . Treads . | . . . Leg 4 | 2 2 . Wheel . | . . . Hover . | . . . Flight . | . . . Utility 4 | 3 1 . Device 2 | 2 . . Storage 2 | 1 1 . Processor . | . . . Hackware . | . . . Protection . | . . . Artifact . | . . . Weapon 9 | 2 2 5 Energy Gun 4 | 2 1 1 Energy Cannon . | . . . Ballistic Gun 4 | . 1 3 Ballistic Cannon . | . . . Launcher 1 | . . 1 Special Weapon . | . . . Impact Weapon . | . . . Slashing Weapon . | . . . Piercing Weapon . | . . . Special Melee Weapon . | . . . Unidentified Prototypes . | . . . Parts Lost 9 | . 1 8 Power 1 | . . 1 Propulsion 3 | . . 3 Utility 1 | . . 1 Weapon 4 | . 1 3 Highest Loss Streak 8 | . 1 8 To Critical Strikes . | . . . Average Backups 6 | 1 5 9 Power 2 | . 2 3 Propulsion . | . . 1 Utility . | . . 1 Weapon 2 | . 2 3 Tool/Special . | . . . Unused Backups 5 | . 1 4 Power 1 | . . 1 Propulsion . | . . . Utility 3 | . . 3 Weapon 1 | . 1 . Tool/Special . | . . . Average Slot Usage (%) 97 | . 99 94 Engine 12 | . 14 10 Leg 29 | . 28 31 Device 12 | . 14 10 Storage 12 | . 14 11 Energy Gun 16 | . 20 11 Ballistic Gun 12 | . 7 19 Peak Build Rating 12 | 9 7 12 Average Rating 8 | 5 6 10 On Entrance 4 | . 7 7 Naked Turns . | . . . Heaviest Build 25 | 14 20 25 Greatest Support 30 | 20 20 30 Greatest Overweight (x) . | . . . Average Overweight (x) . | . . . Largest Inventory Capacity 10 | 8 10 10 Average Capacity 8 | 7 8 10 Most Carried 10 | 2 8 10 Average Carried 6 | 1 5 9 Final Capacity 10 | 8 10 10 Final Carried 8 | 2 8 7 Class Distribution -------------------- 49% | Mutant 32% | Scavenger-Gunner 15% | Scavenger-Mutant Dominant Class ---------------- Mutant | -10/Materials Scavenger-Gunner | -9/Materials Resources | -11 -10 -9 ----------- Run | Yrd Mat Mat Matter Collected 553 | 277 130 146 Remotely . | . . . Salvage Created 923 | 162 357 404 Parts 65 | 16 20 29 Haulers Intercepted . | . . . Recyclers Shooed 2 | . 1 1 Parts Field Recycled . | . . . Retrieved Matter . | . . . Parts Self-Destructed . | . . . Prevented . | . . . Kills | -11 -10 -9 ------- Run | Yrd Mat Mat Combat Hostiles Destroyed 15 | . 6 9 Guns 14 | . 6 8 AOE 1 | . . 1 Classes Destroyed 8 | 2 2 4 Worker 1 | . 1 . Builder 1 | . . 1 Tunneler 4 | 4 . . Recycler 2 | 1 1 . Watcher 1 | . . 1 Grunt 10 | . 6 4 Brawler 2 | . . 2 Sentry 3 | . . 3 Best Kill Streak 6 | 4 5 6 Combat Bots Only 5 | . 4 5 Max Kills in Single Turn 1 | 1 1 1 Gunslinging . | . . . Exploded 1 | . . 1 Melee . | . . . Uniques/NPCs Destroyed . | . . . Combat | -11 -10 -9 -------- Run | Yrd Mat Mat Hostile Shots Fired 154 | . 32 122 Missed 29 | . 6 23 Hits 125 | . 26 99 Melee 5 | . . 5 Projectile 120 | . 26 94 Critical Strikes 6 | . 1 5 Damage Taken 1605 | . 298 1307 Core 456 | . 54 402 Absorbed by Shields . | . . . Core Remaining (%) 89 | 100 78 . Volleys Fired 65 | 7 25 33 Largest 3 | 2 2 3 Hottest 103 | 90 90 103 Shots Fired 140 | 14 50 76 Gun 137 | 14 50 73 Cannon . | . . . Launcher 3 | . . 3 Special . | . . . Kinetic 65 | . 20 45 Thermal 63 | 14 21 28 Explosive 3 | . . 3 Electromagnetic 9 | . 9 . Robot Hit Streak 20 | 10 20 11 Robot Miss Streak 4 | 1 4 3 Penetration Max . | . . . Secondary Targets 4 | . . 4 Max Gunslinging Chain 1 | . . 1 Shots Hit Robots 97 | 10 35 52 Core Hits 50 | 6 16 28 Critical Kills . | . . . Critical Parts Destroyed . | . . . Critical Strikes 1 | . . 1 Burn 1 | . . 1 Melee Attacks . | . . . Impact . | . . . Slashing . | . . . Piercing . | . . . Sneak Attacks . | . . . Combat Hostiles . | . . . Follow-up Attacks . | . . . Damage Inflicted 1713 | 123 473 1117 Guns 1268 | 123 461 684 Cannons . | . . . Explosions 433 | . . 433 Melee . | . . . Ramming 12 | . 12 . Kinetic 645 | . 199 446 Thermal 546 | 123 185 238 Explosive 433 | . . 433 Electromagnetic 77 | . 77 . Impact . | . . . Slashing . | . . . Piercing . | . . . Highest Corruption 1 | . . 1 Average Corruption 1 | . . 1 Corruption Purged . | . . . Corruption Blocked . | . . . Effects 1 | . . 1 Message Errors 1 | . . 1 Overload Shots . | . . . Overflow Damage . | . . . Projectiles . | . . . Explosions . | . . . Melee . | . . . Knockbacks . | . . . Impact . | . . . Kinetic . | . . . Secondary . | . . . Self-Inflicted Damage 31 | . . 31 Shots 1 | . . 1 Rammed . | . . . Targets Rammed 3 | 1 2 . Kicked 3 | 1 2 . Crushed . | . . . Highest Temperature 485 | 60 193 485 Average Temperature 135 | 29 124 172 Received Heat Transfer 846 | . 183 663 Effects 8 | . . 8 Matter Decay 1 | . . 1 Short Circuit 4 | . . 4 Damage (major) 3 | . . 3 Siege Activations . | . . . Martial Activations . | . . . Shielding Activations . | . . . Robots Disrupted . | . . . Combat Hostiles . | . . . Robots Corrupted . | . . . Combat Hostiles . | . . . Parts Fried . | . . . Impact Corruptions . | . . . Robots Melted . | . . . Combat Hostiles . | . . . Parts Melted 5 | 3 1 1 Heat Transferred 1559 | 322 460 777 Parts Sabotaged . | . . . Parts Stolen . | . . . Parts Stripped . | . . . Power Chain Reactions . | . . . Alert | -11 -10 -9 ------- Run | Yrd Mat Mat Maximum Alert Level . | . . . Low Security (%) 100 | 100 100 100 Level 1 . | . . . Level 2 . | . . . Level 3 . | . . . Level 4 . | . . . Level 5 . | . . . High Security . | . . . Max Security . | . . . Peak Influence 138 | 10 95 138 Initial 14 | . . 14 Average 31 | 2 36 34 Influence Increases 539 | 25 172 342 Destroy 0b10 Robot/C 300 | . 120 180 Destroy 0b10 Robot/NC 45 | 25 10 10 Destroy Leader 82 | . 20 62 Successful Hack 22 | . 22 . Destroy Structure 15 | . . 15 Lose Combat Pursuer 75 | . . 75 Influence Decreases 405 | 25 136 244 Entered New Map 22 | . . 22 Time Decay 293 | 25 126 142 Lost Part 90 | . 10 80 Squads Dispatched 1 | . 1 . Investigation . | . . . Extermination . | . . . Reinforcement 1 | . 1 . Assault . | . . . Garrison . | . . . Intercept . | . . . Searches Triggered . | . . . Construction Impeded . | . . . Haulers Reinforced . | . . . Active Scanning Responses . | . . . Cargo Convoy Interrupts . | . . . Stealth | -11 -10 -9 --------- Run | Yrd Mat Mat Distress Signals 5 | . 1 4 Communications Jammed . | . . . Distress Signals . | . . . Times Spotted 26 | . 8 18 Peak Tracking Total 11 | . 5 11 Tactical Retreats 1 | . . 1 Traps | -11 -10 -9 ------- Run | Yrd Mat Mat Traps Triggered . | . . . Indirectly . | . . . Trap Hack Attempts . | . . . Triggered . | . . . Disarmed . | . . . Reprogrammed . | . . . Reused . | . . . Traps Extracted . | . . . Installed . | . . . Triggered . | . . . Machines | -11 -10 -9 ---------- Run | Yrd Mat Mat Machines Disabled . | . . . Max in Single Turn . | . . . Machines Repaired . | . . . Machines Dismantled . | . . . Machines Sabotaged . | . . . Overloaded Fab Kills . | . . . Hacking | -11 -10 -9 --------- Run | Yrd Mat Mat Machines Accessed 4 | . 4 . Terminals 4 | . 4 . Fabricators . | . . . Repair Stations . | . . . Recycling Units . | . . . Scanalyzers . | . . . Garrison Access . | . . . Total Hacks 4 | . 4 . Successful 2 | . 2 . Failed 2 | . 2 . Catastrophic 1 | . 1 . Database Lockouts . | . . . Manual 1 | . 1 . Terminals 4 | . 4 . Fabricators . | . . . Repair Stations . | . . . Recycling Units . | . . . Scanalyzers . | . . . Garrison Access . | . . . Terminal Hacks 2 | . 2 . Level Access Points 1 | . 1 . Locate Traps 1 | . 1 . Fabricator Hacks . | . . . Repair Station Hacks . | . . . Recycling Unit Hacks . | . . . Scanalyzer . | . . . Garrison Access Hacks . | . . . Unauthorized Hacks . | . . . Terminals . | . . . Fabricators . | . . . Repair Stations . | . . . Recycling Units . | . . . Scanalyzers . | . . . Garrison Access . | . . . Data Cores Recovered . | . . . Used . | . . . Hacking Detections 2 | . 2 . Full Trace Events . | . . . Feedback Events . | . . . Feedback Blocked . | . . . Robot Schematics Acquired . | . . . Robots Built . | . . . Authchips . | . . . Time . | . . . Total Robot Build Rating . | . . . Part Schematics Acquired . | . . . Parts Built . | . . . Authchips . | . . . Time . | . . . Total Part Build Rating . | . . . Parts Repaired . | . . . Time . | . . . Parts Recycled . | . . . Recycled Matter . | . . . Retrieved Matter . | . . . Retrieved Components . | . . . Parts Scanalyzed . | . . . Part Schematics Acquired . | . . . Parts Damaged . | . . . Bothacking | -11 -10 -9 ------------ Run | Yrd Mat Mat Used RIF Installer . | . . . Robots Hacked . | . . . Non-combat . | . . . Combat . | . . . Robot Hacks Applied . | . . . Relay Couplers Released . | . . . Fabnet Peak Effective % . | . . . Robots Rewired . | . . . Allies Hacked . | . . . Hacks Repelled . | . . . Allies | -11 -10 -9 -------- Run | Yrd Mat Mat Total Allies . | . . . Largest Group . | . . . Highest-Rated Group . | . . . Highest-Rated Ally . | . . . Total Orders . | . . . Ally Attacks . | . . . Total Damage . | . . . Kills . | . . . Allies Corrupted . | . . . Allies Melted . | . . . Intel | -11 -10 -9 ------- Run | Yrd Mat Mat Active Infowar (turns) 786 | 57 417 312 Terrain 9 | 9 . . Seismic 777 | 48 417 312 Robot Analysis Total . | . . . Derelict Logs Recovered . | . . . Drone Launches . | . . . Drone Recoveries . | . . . Exploration | -11 -10 -9 ------------- Run | Yrd Mat Mat Turns Passed 887 | 125 417 345 Spaces Moved 504 | 75 256 173 Core 4 | 4 . . Treads . | . . . Legs 500 | 71 256 173 Wheels . | . . . Hover . | . . . Flight . | . . . Fastest Speed 50 | 50 120 120 Average Speed 119 | 116 120 120 Slowest Speed 120 | 120 120 120 Overloaded Moves . | . . . Propulsion Burnouts . | . . . Robots Hopped . | . . . Potential Cave-ins . | . . . Cave-ins Triggered . | . . . Exploration Rate (%) 22 | 5 46 17 Regions Visited 2 Branch Regions . Pre-discovered Areas . | . . . Known Exits Taken 1 | . 1 . Unknown Exits Taken 1 | 1 . . Scrap Searched . | . . . Spaces Dug . | . . . Terrain Destroyed 12 | . . 12 Melee . | . . . Projectile . | . . . AOE 12 | . . 12 Terrain Rammed . | . . . Walls Destroyed . | . . . Machines Disabled . | . . . Actions | -11 -10 -9 --------- Run | Yrd Mat Mat Total 654 | 94 313 247 Wait 39 | 2 17 20 Move 502 | 74 255 173 Hop . | . . . Pick Up 9 | 2 3 4 Fast Attach 8 | 7 . 1 Attach 6 | . 1 5 Detach 1 | . . 1 Swap 14 | 1 8 5 Drop 7 | . 2 5 Fire 65 | 7 25 33 Melee . | . . . Ram . | . . . Kick 3 | 1 2 . Crush . | . . . Escape Stasis . | . . . Rewire . | . . . Trap . | . . . Miscellaneous . | . . . Route ------- -11/Scrapyard -10/Materials (discovered 4 exits: *Mat x3 / [*Min]) -9/Materials History --------- Turn | Location | Event 3 | -11/Scrapyard | Discovered new exit (range 16) 126 | -11/Scrapyard | Entered Materials 145 | -10/Materials | Identified exit to Materials 254 | -10/Materials | Discovered new exit (range 15) 337 | -10/Materials | Build established: Mutant 543 | -10/Materials | Entered another Materials area 543 | -9/Materials | Evolved 2 slots: Propulsion x1, Weapon x1 860 | -9/Materials | Core integrity fell below 50% 872 | -9/Materials | Core integrity fell below 20% 888 | -9/Materials | Destroyed by G-34 Mercenary with Small Laser Last Messages --------------- 00878_ U-05 Engineer lays Concrete. 00878_ Critical hit (Burn: +37). 00879_ Overheating: Matter decay (-37). 00879_ U-05 Engineer lays Concrete. 00880_ U-05 Engineer destroyed. 00880_ U-05 Engineer lays Concrete. 00880_ Broken Med. Laser destroyed. 00881_ K-01 Serf collects debris. 00881_ U-05 Engineer lays Concrete. 00882_ R-06 Scavenger collects Rnf. Ion Engine. 00882_ U-05 Engineer lays Concrete. 00883_ U-05 Engineer builds a Wall. 00884_ K-01 Serf collects debris. 00885_ Assault Rifle broken. 00885_ Overheating: Short circuit. 00885_ R-06 Scavenger collects Lgt. Treads. 00886_ U-05 Engineer builds a Wall. 00887_ U-05 Engineer lays Concrete. 00887_ G-47 Trooper destroyed. 00888_ OD7/3QB4/YYVZK